fUSD/lending_fUSD_20241013
["ID","MTS","AMOUNT","RATE_DAILY","PERIOD"]
[340222828,1728856239350,-200.0,0.000205,2]
[340222829,1728856239361,-3305.54680566,0.000205,2]
[340222830,1728856239372,-174.89,0.00020548,2]
[340222831,1728856239384,-150.0,0.00020764,2]
[340222832,1728856239395,-10000.0,0.00020769,2]
[340222833,1728856239406,-549.68,0.00020868,2]
[340222834,1728856239417,-150.0,0.00020927,2]
[340222835,1728856239427,-150.0,0.00020928,2]
[340222836,1728856239437,-150.0,0.00020929,2]
[340222837,1728856239448,-150.0,0.00020929,2]
[340222838,1728856239459,-150.0,0.00020932,2]
[340222839,1728856239474,-150.0,0.00020933,2]
[340222840,1728856239487,-150.0,0.00020936,2]
[340222841,1728856239498,-150.0,0.00020939,2]
[340222842,1728856239510,-150.0,0.00020949,2]
[340222843,1728856239522,-150.0,0.00020951,2]
[340222844,1728856239533,-150.0,0.00020955,2]
[340222845,1728856239543,-150.0,0.00020957,2]
[340222846,1728856239553,-150.0,0.00020959,2]
[340222847,1728856239563,-150.0,0.0002096,2]
[340222848,1728856239572,-150.0,0.00020965,2]
[340222849,1728856239582,-150.0,0.00020966,2]
[340222850,1728856239592,-150.0,0.0002097,2]
[340222851,1728856239602,-150.0,0.00020973,2]
[340222852,1728856239612,-150.0,0.00020976,2]
[340222853,1728856239623,-150.0,0.00020983,2]
[340222854,1728856239633,-150.0,0.00020985,2]
[340222855,1728856239644,-150.0,0.00020989,2]
[340222856,1728856239655,-150.0,0.00020993,2]
[340222857,1728856239666,-150.0,0.00020994,2]
[340222858,1728856239676,-150.0,0.00020996,2]
[340222859,1728856239687,-150.0,0.00021005,2]
[340222860,1728856239698,-150.0,0.00021007,2]
[340222861,1728856239708,-150.0,0.00021012,2]
[340222862,1728856239719,-150.0,0.00021014,2]
[340222863,1728856239729,-150.0,0.00021015,2]
[340222864,1728856239739,-150.0,0.00021016,2]
[340222865,1728856239751,-150.0,0.00021018,2]
[340222866,1728856239760,-150.0,0.00021019,2]
[340222867,1728856239771,-150.0,0.00021027,2]
[340222868,1728856239781,-150.0,0.00021027,2]
[340222869,1728856239792,-150.0,0.0002103,2]
[340222870,1728856239803,-150.0,0.00021032,2]
[340222871,1728856239815,-150.0,0.00021034,2]
[340222872,1728856239825,-150.0,0.00021038,2]
[340222873,1728856239836,-150.0,0.0002104,2]
[340222874,1728856239846,-150.0,0.00021042,2]
[340222876,1728856239856,-150.0,0.00021045,2]
[340222877,1728856239867,-150.0,0.00021049,2]
[340222878,1728856239877,-150.0,0.00021054,2]
[340222879,1728856239887,-150.0,0.00021058,2]
[340222880,1728856239897,-150.0,0.0002106,2]
[340222881,1728856239908,-150.0,0.00021061,2]
[340222882,1728856239918,-150.0,0.00021067,2]
[340222883,1728856239929,-150.0,0.00021068,2]
[340222884,1728856239939,-150.0,0.0002107,2]
[340222885,1728856239950,-150.0,0.0002107,2]
[340222886,1728856239960,-150.0,0.0002107,2]
[340222887,1728856239971,-150.0,0.00021073,2]
[340222888,1728856239981,-150.0,0.00021074,2]
[340222889,1728856239991,-150.0,0.00021076,2]
[340222890,1728856240001,-150.0,0.00021081,2]
[340222892,1728856240012,-150.0,0.00021085,2]
[340222893,1728856240022,-150.0,0.00021085,2]
[340222894,1728856240033,-150.0,0.00021088,2]
[340222895,1728856240044,-150.0,0.00021089,2]
[340222896,1728856240055,-150.0,0.0002109,2]
[340222897,1728856240066,-150.0,0.00021092,2]
[340222898,1728856240077,-150.0,0.00021096,2]
[340222899,1728856240088,-150.0,0.00021098,2]
[340222900,1728856240098,-150.0,0.00021098,2]
[340222901,1728856240109,-181.96,0.000211,2]
[340222902,1728856240119,-150.0,0.00021105,2]
[340222903,1728856240130,-150.0,0.00021105,2]
[340222904,1728856240143,-150.0,0.00021107,2]
[340222905,1728856240153,-150.0,0.00021111,2]
[340222906,1728856240164,-150.0,0.00021116,2]
[340222907,1728856240174,-150.0,0.00021121,2]
[340222908,1728856240184,-150.0,0.00021122,2]
[340222909,1728856240195,-150.0,0.00021123,2]
[340222910,1728856240209,-150.0,0.00021127,2]
[340222911,1728856240220,-150.0,0.00021134,2]
[340222912,1728856240231,-150.0,0.00021136,2]
[340222913,1728856240241,-150.0,0.00021138,2]
[340222914,1728856240252,-150.0,0.00021142,2]
[340222915,1728856240262,-150.0,0.00021143,2]
[340222916,1728856240273,-150.0,0.00021143,2]
[340222917,1728856240284,-150.0,0.00021144,2]
[340222918,1728856240295,-150.0,0.00021146,2]
[340222919,1728856240305,-150.0,0.00021152,2]
[340222920,1728856240316,-150.0,0.00021154,2]
[340222921,1728856240326,-150.0,0.00021161,2]
[340222922,1728856240337,-150.0,0.00021161,2]
[340222923,1728856240347,-150.0,0.00021162,2]
[340222924,1728856240357,-150.0,0.00021169,2]
[340222934,1728856240526,-150.0,0.0002117,2]
[340222936,1728856240536,-150.0,0.00021182,2]
[340222938,1728856240545,-150.0,0.00021183,2]
[340222940,1728856240555,-150.0,0.00021183,2]
[340222942,1728856240565,-150.0,0.00021183,2]
[340222944,1728856240575,-150.0,0.00021184,2]
[340222946,1728856240584,-150.0,0.00021186,2]
[340222947,1728856240594,-150.0,0.0002119,2]
[340222949,1728856240604,-150.0,0.00021191,2]
[340222951,1728856240614,-150.0,0.00021191,2]
[340222953,1728856240624,-150.0,0.00021195,2]
[340222955,1728856240633,-150.0,0.00021197,2]
[340222956,1728856240642,-150.0,0.00021629,2]
[340222958,1728856240651,-367.75,0.00021918,2]
[340222960,1728856240660,-276.5,0.00021918,2]
[340222962,1728856240670,-850.0,0.00022,2]
[340222964,1728856240679,-150.0,0.00022062,2]
[340222966,1728856240689,-151.95,0.00022137,30]
[340222968,1728856240699,-1402.0,0.000222,2]
[340222970,1728856240709,-500.0,0.00022286,2]
[340222972,1728856240719,-500.0,0.00022294,2]
[340222974,1728856240728,-500.0,0.00022303,2]
[340222976,1728856240738,-500.0,0.00022312,2]
[340222978,1728856240747,-500.0,0.00022321,2]
[340222980,1728856240757,-6870.36449338,0.00022326,2]
[340222982,1728856240766,-500.0,0.0002233,2]
[340222984,1728856240776,-500.0,0.00022338,2]
[340222985,1728856240785,-500.0,0.00022347,2]
[340222987,1728856240794,-500.0,0.00022356,2]
[340222989,1728856240803,-500.0,0.00022365,2]
[340222991,1728856240813,-500.0,0.00022374,2]
[340222993,1728856240822,-500.0,0.00022382,2]
[340222995,1728856240832,-500.0,0.00022391,2]
[340222996,1728856240842,-500.0,0.000224,2]
[340222998,1728856240851,-150.0,0.00022417,2]
[340223000,1728856240861,-166327.04547481,0.0002248,2]
[340223002,1728856240870,-225.599967,0.00022485,2]
[340223004,1728856240880,-225.599967,0.00022485,2]
[340223006,1728856240889,-225.599967,0.00022485,2]
[340223008,1728856240898,-225.599967,0.00022485,2]
[340223010,1728856240908,-225.599967,0.00022485,2]
[340223012,1728856240918,-6491.8282122,0.00022485,2]
[340223014,1728856240927,-5151.6584515,0.00022485,2]
[340223016,1728856240937,-3811.4886908,0.00022485,2]
[340223018,1728856240947,-2471.3189301,0.00022485,2]
[340223020,1728856240957,-1131.1491693,0.00022485,2]
[340223022,1728856240967,-11180.98177,0.00022485,2]
[340223024,1728856240976,-8959.9190354,0.00022485,2]
[340223026,1728856240986,-6738.8563008,0.00022485,2]
[340223028,1728856240996,-4517.7935662,0.00022485,2]
[340223030,1728856241005,-2296.7308316,0.00022485,2]
[340223032,1728856241015,-131138.5764921,0.00022485,2]
[340223034,1728856241024,-105088.3591406,0.00022485,2]
[340223035,1728856241033,-79038.141789,0.00022485,2]
[340223037,1728856241042,-52987.9244375,0.00022485,2]
[340223039,1728856241051,-26937.707086,0.00022485,2]
[340223041,1728856241060,-151.0,0.00022485,7]
[340223043,1728856241069,-557.020589,0.00022485,7]
[340223045,1728856241079,-557.020589,0.00022485,7]
[340223047,1728856241089,-151.0,0.00022485,7]
[340223049,1728856241099,-1379.949631,0.00022485,7]
[340223051,1728856241108,-1379.949631,0.00022485,7]
[340223053,1728856241118,-150.0,0.00022494,2]
[340223055,1728856241128,-11373.19697819,0.00022499,2]
[340223056,1728856241137,-1440927.66480283,0.000225,2]
[340223059,1728856241152,-800.0,0.000225,2]
[340223060,1728856241163,-31622.82932291,0.000225,2]
[340223061,1728856241212,-1038.93937347,0.000109,2]
[340223063,1728856241232,-550.0,0.000109,2]
[340223068,1728856241272,-540.14458002,0.000109,2]
[340223070,1728856241284,-515.81000012,0.000109,2]
[340223268,1728856243323,-259.90365485,0.000109,2]
[340223270,1728856243334,-281.326473,0.000109,2]
[340223276,1728856243382,-7028.17521854,0.000109,2]
[340223278,1728856243391,-512.33416551,0.00010973,2]
[340223280,1728856243401,-150.0,0.00019399,2]
[340223282,1728856243411,-150.0,0.00020503,2]
[340223284,1728856243420,-150.0,0.00020506,2]
[340223286,1728856243430,-150.0,0.00020518,2]
[340223288,1728856243440,-150.0,0.00020531,2]
[340223290,1728856243449,-150.0,0.00020553,2]
[340223292,1728856243458,-150.0,0.00020574,2]
[340223294,1728856243469,-150.0,0.00020596,2]
[340223296,1728856243478,-150.0,0.00020599,2]
[340223298,1728856243487,-150.0,0.00020601,2]
[340223300,1728856243496,-150.0,0.00020603,2]
[340223302,1728856243506,-150.0,0.0002062,2]
[340223304,1728856243516,-150.0,0.00020624,2]
[340223306,1728856243525,-150.0,0.00020645,2]
[340223308,1728856243535,-150.0,0.00020646,2]
[340223310,1728856243544,-150.0,0.00020653,2]
[340223311,1728856243553,-150.0,0.00020658,2]
[340223313,1728856243562,-150.0,0.00020662,2]
[340223315,1728856243572,-150.0,0.00020663,2]
[340223317,1728856243581,-150.0,0.00020665,2]
[340223319,1728856243591,-150.0,0.00020672,2]
[340223321,1728856243600,-150.0,0.00020673,2]
[340223323,1728856243610,-150.0,0.00020673,2]
[340223325,1728856243619,-150.0,0.00020688,2]
[340223326,1728856243629,-150.0,0.00020689,2]
[340223328,1728856243638,-150.0,0.00020696,2]
[340223330,1728856243647,-150.0,0.00020702,2]
[340223332,1728856243657,-150.0,0.00020702,2]
[340223334,1728856243667,-150.0,0.00020706,2]
[340223336,1728856243677,-150.0,0.00020707,2]
[340223338,1728856243686,-150.0,0.00020707,2]
[340223340,1728856243696,-150.0,0.00020708,2]
[340223342,1728856243706,-150.0,0.00020714,2]
[340223344,1728856243719,-207.67695738,0.00020719,2]
[340223346,1728856243729,-150.0,0.0002072,2]
[340223348,1728856243739,-150.0,0.0002072,2]
[340223350,1728856243749,-150.0,0.00020722,2]
[340223352,1728856243759,-150.0,0.00020726,2]
[340223354,1728856243769,-150.0,0.0002073,2]
[340223356,1728856243779,-150.0,0.00020736,2]
[340223358,1728856243789,-150.0,0.00020736,2]
[340223360,1728856243799,-150.0,0.00020758,2]
[340223362,1728856243809,-150.0,0.0002076,2]
[340223364,1728856243818,-10000.0,0.00020769,2]
[340223366,1728856243828,-150.0,0.00020775,2]
[340223368,1728856243840,-150.0,0.00020788,2]
[340223370,1728856243850,-150.0,0.00020804,2]
[340223372,1728856243859,-150.0,0.00020805,2]
[340223374,1728856243869,-150.0,0.00020805,2]
[340223376,1728856243879,-150.0,0.0002081,2]
[340223378,1728856243888,-150.0,0.00020819,2]
[340223380,1728856243898,-150.0,0.00020824,2]
[340223382,1728856243907,-150.0,0.00020837,2]
[340223384,1728856243918,-150.0,0.00020841,2]
[340223386,1728856243927,-150.0,0.00020845,2]
[340223388,1728856243937,-150.0,0.00020851,2]
[340223390,1728856243946,-150.0,0.00020855,2]
[340223392,1728856243956,-150.0,0.00020863,2]
[340223394,1728856243967,-150.0,0.00020865,2]
[340223396,1728856243984,-150.0,0.00020868,2]
[340223399,1728856243997,-150.0,0.00020871,2]
[340223401,1728856244007,-150.0,0.00020872,2]
[340223403,1728856244017,-150.0,0.00020872,2]
[340223405,1728856244027,-150.0,0.00020876,2]
[340223406,1728856244036,-150.0,0.00020877,2]
[340223408,1728856244046,-150.0,0.00020881,2]
[340223410,1728856244055,-150.0,0.00020883,2]
[340223412,1728856244066,-150.0,0.00020886,2]
[340223415,1728856244076,-150.0,0.00020896,2]
[340223417,1728856244085,-150.0,0.00020905,2]
[340223418,1728856244095,-150.0,0.00020906,2]
[340223420,1728856244105,-150.0,0.00020912,2]
[340223423,1728856244115,-150.0,0.00020917,2]
[340223424,1728856244124,-150.0,0.00020918,2]
[340223426,1728856244133,-150.0,0.0002092,2]
[340223428,1728856244144,-150.0,0.00020923,2]
[340223429,1728856244154,-150.0,0.00020928,2]
[340223430,1728856244163,-150.0,0.00020937,2]
[340223431,1728856244173,-150.0,0.00020947,2]
[340223432,1728856244182,-150.0,0.00020951,2]
[340223433,1728856244191,-150.0,0.00020952,2]
[340223434,1728856244200,-150.0,0.00020958,2]
[340223435,1728856244212,-150.0,0.00020959,2]
[340223437,1728856244223,-150.0,0.00020978,2]
[340223439,1728856244232,-150.0,0.00021017,2]
[340223441,1728856244242,-150.0,0.00021026,2]
[340223443,1728856244253,-150.0,0.00021039,2]
[340223445,1728856244262,-150.0,0.00021046,2]
[340223447,1728856244272,-150.0,0.00021054,2]
[340223448,1728856244281,-150.0,0.00021067,2]
[340223450,1728856244292,-150.0,0.00021124,2]
[340223452,1728856244301,-150.0,0.00022055,2]
[340223454,1728856244310,-150.0,0.00022064,2]
[340223456,1728856244320,-150.0,0.00022121,2]
[340223458,1728856244330,-150.0,0.00022121,2]
[340223460,1728856244339,-150.0,0.00022122,2]
[340223462,1728856244349,-150.0,0.00022172,2]
[340223463,1728856244358,-150.0,0.00022195,2]
[340223465,1728856244368,-150.0,0.00022211,2]
[340223467,1728856244377,-150.0,0.00022214,2]
[340223469,1728856244387,-150.0,0.00022239,2]
[340223471,1728856244397,-840086.45123346,0.000225,2]
[340223650,1728856246217,-666.2799,0.00020769,2]
[340224019,1728856407975,180.76,0.00024679,120]
[340224022,1728857223837,550.0,0.0001,2]
[340224043,1728857432196,-472.0497,0.000109,2]
[340224044,1728857432206,-160.3,0.00010959,2]
[340224045,1728857432216,-156.84,0.00010959,2]
[340224047,1728857432226,-150.0,0.00010998,2]
[340224048,1728857432236,-1220.35,0.00010999,2]
[340224049,1728857432245,-1002.86935,0.00010999,2]
[340224050,1728857432283,-217.48065,0.00010999,2]
[340224051,1728857432292,-1220.35,0.00010999,2]
[340224052,1728857432303,-1220.35,0.00010999,2]
[340224053,1728857432312,-1220.35,0.00010999,2]
[340224054,1728857432322,-1220.35,0.00010999,2]
[340224055,1728857432331,-1220.35,0.00010999,2]
[340224056,1728857432342,-1220.35,0.00010999,2]
[340224057,1728857432351,-1220.35,0.00010999,2]
[340224058,1728857432361,-1220.35,0.00010999,2]
[340224059,1728857432370,-1220.35,0.00010999,2]
[340224060,1728857432379,-1220.35,0.00010999,2]
[340224061,1728857432389,-1220.35,0.00010999,2]
[340224062,1728857432399,-1220.35,0.00010999,2]
[340224063,1728857432408,-1220.35,0.00010999,2]
[340224064,1728857432418,-1220.35,0.00010999,2]
[340224065,1728857432427,-1220.35,0.00010999,2]
[340224066,1728857432437,-1220.35,0.00010999,2]
[340224067,1728857432446,-1220.35,0.00010999,2]
[340224068,1728857432455,-1220.35,0.00010999,2]
[340224069,1728857432464,-1220.35,0.00010999,2]
[340224070,1728857432475,-1220.35,0.00010999,2]
[340224071,1728857432484,-1220.35,0.00010999,2]
[340224072,1728857432494,-1220.42949327,0.00010999,2]
[340224073,1728857432505,-150.0,0.00011,2]
[340224074,1728857432514,-500.0,0.00011,2]
[340224076,1728857432524,-600.0,0.00012,2]
[340224077,1728857432534,-650.0,0.00014,2]
[340224078,1728857432543,-700.0,0.00016,2]
[340224079,1728857432552,-155.38,0.00016438,2]
[340224080,1728857432561,-499.99,0.0001726,2]
[340224081,1728857432570,-503.89,0.00017539,2]
[340224082,1728857432579,-1320.0,0.000176,2]
[340224083,1728857432588,-179.2,0.000177,7]
[340224084,1728857432597,-750.0,0.00018,2]
[340224085,1728857432607,-180.76,0.0001851,2]
[340224086,1728857432617,-1000.0,0.0001867,2]
[340224087,1728857432626,-167.0,0.00019065,2]
[340224088,1728857432635,-151.0,0.00019073,2]
[340224089,1728857432644,-200.0,0.00019268,2]
[340224090,1728857432654,-250.0,0.00019272,2]
[340224091,1728857432663,-250.0,0.00019275,2]
[340224092,1728857432672,-150.0,0.0001928,2]
[340224093,1728857432682,-2000.0,0.00019289,2]
[340224094,1728857432691,-500.0,0.00019321,2]
[340224095,1728857432700,-2751.0,0.00019375,2]
[340224096,1728857432710,-250.0,0.00019392,2]
[340224097,1728857432719,-198.8,0.00019414,2]
[340224098,1728857432728,-167.0,0.00019694,2]
[340224099,1728857432738,-150.0,0.00019795,2]
[340224100,1728857432748,-503.89,0.00019803,2]
[340224101,1728857432757,-800.0,0.0002,2]
[340224102,1728857432766,-150.0,0.0002031,2]
[340224103,1728857432776,-167.0,0.00020323,2]
[340224104,1728857432785,-1500.0,0.000205,2]
[340224105,1728857432795,-1059.99413863,0.000205,2]
[340224106,1728857432804,-163.0,0.000205,2]
[340224107,1728857432813,-331.38776215,0.000205,2]
[340224108,1728857432823,-300.0,0.00020615,2]
[340224109,1728857432832,-150.0,0.00020825,2]
[340224110,1728857432842,-167.0,0.00020953,2]
[340224111,1728857432851,-157.079,0.00020996,2]
[340224112,1728857432861,-1000.0,0.00021003,2]
[340224113,1728857432870,-180.0,0.00021218,2]
[340224114,1728857432879,-150.0,0.0002134,2]
[340224115,1728857432888,-3051.19430011,0.0002143,2]
[340224116,1728857432897,-167.0,0.00021582,2]
[340224117,1728857432907,-180.76,0.00021594,2]
[340224118,1728857432916,-150.0,0.00021855,2]
[340224119,1728857432927,-306.45,0.00021918,2]
[340224120,1728857432936,-230.41,0.00021918,2]
[340224121,1728857432945,-300.0,0.00021984,2]
[340224122,1728857432957,-850.0,0.00022,2]
[340224123,1728857432967,-503.89,0.00022067,2]
[340224124,1728857432976,-151.95,0.00022137,30]
[340224125,1728857432985,-3415.54985395,0.000222,2]
[340224127,1728857438346,-150.0,0.00019835,2]
[340224128,1728857438355,-107.8963,0.000222,2]
[340224129,1728857438643,-2087.68964605,0.000222,2]
[340224130,1728857438653,-3808.5079,0.000222,2]
[340224131,1728857438663,-167.0,0.00022211,2]
[340224132,1728857438672,-1525.3606,0.0002229,2]
[340224133,1728857438682,-7500.0,0.0002229,2]
[340224134,1728857438691,-4499.3867,0.000223,2]
[340224135,1728857438700,-16028.56539912,0.000223,2]
[340224177,1728857440507,-678.98797357,0.000223,2]
[340224178,1728857440518,-1753.05448032,0.000223,2]
[340224179,1728857440530,-2105.16272403,0.000223,2]
[340224180,1728857440541,-6000.147671,0.000223,2]
[340224181,1728857440682,-73434.08175196,0.000223,2]
[340224182,1728857440691,-4777.0048,0.000223,2]
[340224183,1728857440701,-316.52123526,0.000223,2]
[340224184,1728857440710,-232.4561488,0.00022325,2]
[340224419,1728857443299,-84.06508646,0.00022325,2]
[340224420,1728857443308,-316.52123526,0.0002235,2]
[340224421,1728857443318,-9046.67068774,0.00022356,2]
[340224422,1728857443327,-150.0,0.0002237,2]
[340224423,1728857443337,-316.52123526,0.00022375,2]
[340224424,1728857443347,-9046.67068774,0.00022378,2]
[340224425,1728857443356,-48323.1167547,0.0002239,5]
[340224426,1728857443365,-500.0,0.00022399,2]
[340224428,1728857443375,-259.57178787,0.00022399,2]
[340224430,1728857443385,-108095.1327,0.000224,2]
[340224431,1728857443394,-217.0,0.000224,2]
[340224434,1728857443404,-1758.8238,0.000224,2]
[340224436,1728857443414,-1000.0,0.000224,2]
[340224438,1728857443423,-210.91376579,0.000224,2]
[340224440,1728857443432,-159.10157046,0.000224,2]
[340224441,1728857443442,-403.86819867,0.000224,2]
[340224443,1728857443451,-9046.67068774,0.000224,2]
[340224445,1728857443460,-393.63044418,0.000224,2]
[340224447,1728857443470,-316.52123526,0.000224,2]
[340224449,1728857443481,-1250.0,0.000224,4]
[340224451,1728857443490,-1250.0,0.000224,4]
[340224453,1728857443499,-24161.5583774,0.0002247,5]
[340224455,1728857443508,-48323.1167547,0.0002248,5]
[340224457,1728857443517,-504.54302589,0.00022489,2]
[340224458,1728857443526,-304097.98196474,0.0002249,5]
[340224460,1728857443538,-2933.92509834,0.0002249,5]
[340224463,1728857443549,-7068.35184292,0.0002249,5]
[340224464,1728857443559,-23832.71107663,0.0002249,5]
[340224467,1728857443569,-12620.96804001,0.0002249,5]
[340224474,1728857443635,-387.0104315,0.0002249,5]
[340224734,1728857446291,-13214.80996156,0.0002249,5]
[340224752,1728857446522,-512.781649,0.0002249,5]
[340224754,1728857446534,-1580.525,0.0002249,5]
[340225357,1728858353248,2372.41593424,0.0001,2]
[340225390,1728858631424,-1154.26906258,0.000109,2]
[340225391,1728858631435,-164.44,0.00010959,2]
[340225392,1728858631445,-161.96,0.00010959,2]
[340225393,1728858631454,-345.5766335,0.00010973,2]
[340225394,1728858631464,-300.0,0.00010999,2]
[340225395,1728858631474,-150.0,0.00010999,2]
[340225396,1728858631484,-500.0,0.00010999,2]
[340225397,1728858631493,-195.92954708,0.00010999,2]
[340225398,1728858631503,-500.0,0.00010999,2]
[340225399,1728858631512,-203.00366286,0.00010999,2]
[340225400,1728858631524,-140.96499033,0.00010999,2]
[340225401,1728858631533,-268.16,0.00011,2]
[340225402,1728858631543,-357.58622451,0.00011,2]
[340225403,1728858631558,-2862.03116841,0.00011,2]
[340225404,1728858631570,-164390.05243349,0.00011,2]
[340225405,1728858631670,-900.0,0.00011,2]
[340225406,1728858631682,-446.45853724,0.00011,2]
[340225409,1728858637525,-1634.46250122,0.00011,2]
[340225412,1728858637537,-458.82276865,0.00011,2]
[340225413,1728858637548,-537.0,0.00011,2]
[340225414,1728858637794,-1729.06733478,0.00011,2]
[340225415,1728858637805,-2216.38758432,0.00011,2]
[340225416,1728858637816,-1267.6,0.00011,2]
[340225417,1728858637871,-469.50530869,0.00011,2]
[340225418,1728858637883,-64802.65779289,0.00011,2]
[340225419,1728858637897,-5488.263201,0.00011,2]
[340225431,1728858639570,-31160.10263208,0.00011,2]
[340225518,1728858642695,-314.27258046,0.00011,2]
[340225519,1728858642845,-325.8550001,0.00011,2]
[340225520,1728858642859,-377.338759,0.00011,2]
[340225521,1728858642871,-21062.640611,0.00011,2]
[340225522,1728858645507,-39834.09098938,0.00011,2]
[340225525,1728859051487,550.0,0.0001,2]
[340225526,1728859080405,189.8,0.00026024,120]
[340225527,1728859429839,567.58,9.886e-05,2]
[340225531,1728859664522,44927.0,0.00027,60]
[340225532,1728859666536,288.00000006,0.00027,60]
[340225537,1728859808130,151.3224801,0.00027,60]
[340225549,1728859831580,-214.405,0.0001078,2]
[340225551,1728859831593,-300.0,0.00010899,2]
[340225552,1728859831604,-112.795,0.000109,2]
[340225553,1728859831759,-493.6351,0.000109,2]
[340225554,1728859831770,-3544.8637289,0.000109,2]
[340225555,1728859831781,-2537.4362711,0.000109,2]
[340225556,1728859831791,-2289.62670689,0.000109,2]
[340225557,1728859831803,-7724.93779311,0.000109,2]
[340225558,1728859831812,-615.2804071,0.000109,2]
[340225559,1728859831821,-162.95,0.00010959,2]
[340225560,1728859831831,-160.3,0.00010959,2]
[340225561,1728859831841,-237.47651731,0.0001099,2]
[340225562,1728859831850,-150.0,0.00010998,2]
[340225563,1728859831860,-15276.35158866,0.00010999,2]
[340225564,1728859831870,-2232.24709071,0.00010999,2]
[340225565,1728859831882,-4456.4131719,0.00010999,2]
[340225566,1728859831891,-239.92460028,0.00010999,2]
[340225567,1728859831901,-7143.15935287,0.00011,2]
[340225572,1728859837961,-519.00760676,0.00011,2]
[340225573,1728859837972,-1398.29080006,0.00011,2]
[340225574,1728859838055,-37010.14324801,0.00011,2]
[340225577,1728859839678,-6289.3,0.00011,2]
[340225578,1728859839785,-5467.13881869,0.00011,2]
[340225579,1728859839796,-34221.86238627,0.00011,2]
[340225580,1728859839808,-64524.22854119,0.00011,2]
[340225581,1728859839819,-27053.90907254,0.00011,2]
[340225582,1728859839888,-314.595,0.00011,2]
[340225681,1728859843054,-304.60928745,0.00011,2]
[340225683,1728859845620,-6495.16816358,0.00011,2]
[340225684,1728859845720,-39423.86134835,0.00011,2]
[340225685,1728859845733,-288.3049414,0.00011,2]
[340225686,1728859845822,-1000.0,0.00011,2]
[340225687,1728859965614,599.12,9.272e-05,2]
[340225688,1728860617995,596.53,8.497e-05,2]
[340225689,1728860712534,150.0,9.888e-05,2]
[340225692,1728860811869,250.0,0.00010234,2]
[340225721,1728860873498,295.74089836,0.0001,2]
[340225722,1728860873522,254.25910164,0.0001,2]
[340225723,1728860979335,1559.635138,0.00010216,2]
[340225726,1728861031817,-250.0,0.00010268,2]
[340225727,1728861031826,-300.0,0.00010281,2]
[340225728,1728861031836,-156.84,0.00010282,2]
[340225729,1728861031845,-11230.04,0.00010282,2]
[340225730,1728861031854,-186.35,0.00010287,2]
[340225731,1728861031864,-1000.0,0.00010304,2]
[340225732,1728861031873,-1006.0,0.00010379,2]
[340225733,1728861031882,-500.0,0.0001038,2]
[340225734,1728861031891,-4346.61,0.00010441,2]
[340225735,1728861031901,-596.53,0.00010761,2]
[340225736,1728861031910,-214.406,0.0001078,2]
[340225737,1728861031919,-499.99,0.000108,2]
[340225738,1728861031928,-150.0,0.00010899,2]
[340225739,1728861031939,-1724.4573,0.000109,2]
[340225740,1728861031948,-175.9212,0.000109,2]
[340225741,1728861031958,-3071.8389,0.000109,2]